fUSD/lending_fUSD_20240508
["ID","MTS","AMOUNT","RATE_DAILY","PERIOD"]
[326620039,1715154641110,-200.0,0.00011941,2]
[326620040,1715154641121,-159.26,0.00012012,2]
[326620041,1715154641132,-150.0,0.00012012,2]
[326620042,1715154641145,-250.0,0.00012028,2]
[326620043,1715154641157,-299.99,0.00012028,2]
[326620044,1715154641168,-169.81,0.00012272,2]
[326620045,1715154641179,-5339.57,0.00012272,2]
[326620046,1715154641189,-5665.05,0.00012272,2]
[326620047,1715154641199,-192.15,0.00012276,2]
[326620048,1715154641210,-8232.01,0.00012329,3]
[326620049,1715154641222,-3500.94133622,0.00012619,2]
[326620050,1715154641232,-159.26,0.00012638,2]
[326620051,1715154641242,-251.98815211,0.0001267,2]
[326620052,1715154641254,-499.99,0.0001267,2]
[326620053,1715154641264,-874.9438,0.000127,2]
[326620054,1715154641275,-150.99,0.000127,2]
[326620055,1715154641285,-659.5783,0.000127,2]
[326620056,1715154641295,-2165.2578,0.000127,2]
[326620057,1715154641306,-156.41396986,0.00012798,2]
[326620058,1715154641316,-155.39611615,0.00012798,2]
[326620059,1715154641326,-331.05492681,0.00012799,2]
[326620060,1715154641336,-1997.34565301,0.00012799,2]
[326620061,1715154641346,-1000.0,0.000128,2]
[326620062,1715154641358,-20943.8025127,0.000128,2]
[326620063,1715154641372,-4168.1130119,0.000128,2]
[326620064,1715154641385,-4048.13730011,0.000128,2]
[326620065,1715154641398,-2710.90272,0.000128,2]
[326620066,1715154641410,-315.405,0.000128,2]
[326620067,1715154641422,-852.94314479,0.000128,2]
[326620068,1715154641433,-1212.14956,0.000128,2]
[326620069,1715154641445,-590.46,0.000128,2]
[326620070,1715154641458,-6170.50105605,0.000128,2]
[326620071,1715154641473,-1506.69611468,0.000128,2]
[326620072,1715154641484,-416.57582921,0.000128,2]
[326620073,1715154641496,-310.52466767,0.000128,2]
[326620074,1715154641508,-439.54636968,0.000128,2]
[326620075,1715154641520,-2347.08480972,0.000128,2]
[326620082,1715154642426,-671.80019193,0.000128,2]
[326620086,1715154642438,-16328.84195545,0.000128,2]
[326620089,1715154642449,-319.8,0.000128,2]
[326620091,1715154642461,-2460.35263129,0.000128,2]
[326620093,1715154642479,-34054.35797016,0.000128,2]
[326620095,1715154642494,-132.00515466,0.000128,2]
[326620097,1715154642504,-1561.86172371,0.00012827,2]
[326620099,1715154642513,-500.0,0.00012899,2]
[326620101,1715154642523,-3496.8277,0.000129,2]
[326620103,1715154642532,-674.3265,0.000129,2]
[326620105,1715154642542,-1000.0,0.000129,2]
[326620106,1715154642551,-7500.0,0.000129,2]
[326620107,1715154642560,-1415.66595597,0.000129,2]
[326620108,1715154642569,-304.56831174,0.000129,2]
[326620109,1715154642580,-1062.23540512,0.00012998,2]
[326620110,1715154642589,-521.8596669,0.00012998,2]
[326620111,1715154642598,-171.42471041,0.00012999,2]
[326620112,1715154642607,-5477.81250141,0.00012999,2]
[326620113,1715154642616,-7381.41237008,0.00013,2]
[326620114,1715154642628,-523.78823262,0.00013,2]
[326620116,1715154646656,-260.32360133,0.00012736,2]
[326620122,1715154646668,-1405.9868012,0.00012736,2]
[326620126,1715154646679,-303.51280347,0.00012736,2]
[326620130,1715154646689,-4383.34719653,0.00013,2]
[326620135,1715154646700,-370.26254088,0.00013,2]
[326620140,1715154646713,-29598.14301544,0.00013,2]
[326620143,1715154646725,-1122.46358234,0.00013,2]
[326620146,1715154646736,-1439.85882785,0.00013,2]
[326620149,1715154646748,-439.93968121,0.00013,2]
[326620152,1715154646759,-4149.38318394,0.00013,2]
[326620155,1715154646770,-353.20175428,0.00013,2]
[326620158,1715154646781,-358.54738649,0.00013,2]
[326620161,1715154646792,-590.59,0.00013,2]
[326620164,1715154646806,-517.70657347,0.00013,2]
[326620167,1715154646818,-25420.91999785,0.00013,2]
[326620169,1715154646827,-15640.28508356,0.00013,2]
[326620171,1715154646838,-793.97649393,0.00013,2]
[326620172,1715154646849,-1259.95708518,0.00013,2]
[326620173,1715154646861,-312149.70370525,0.00013,2]
[326620174,1715154646872,-1461.55171556,0.00013,2]
[326620176,1715154646883,-1913.60066779,0.00013,2]
[326620178,1715154646896,-768.327,0.00013,2]
[326620180,1715154646907,-603.72704376,0.00013,2]
[326620182,1715154646918,-3198.81076345,0.00013,2]
[326620184,1715154646928,-344.447979,0.00013,2]
[326620186,1715154646940,-20011.0000021,0.00013,2]
[326620189,1715154646951,-8571.89705668,0.00013,2]
[326620191,1715154646963,-1181.18,0.00013,2]
[326620193,1715154646974,-2950.0,0.00013,2]
[326620195,1715154646986,-250.5814632,0.00013,2]
[326620197,1715154646997,-422.79368979,0.00013,2]
[326620202,1715154648989,-308.88028288,0.00013,2]
[326620205,1715154649000,-402.90319406,0.00013,2]
[326621362,1715155726433,-155.0,0.00011588,2]
[326621363,1715155726458,-155.0,0.00011599,2]
[326621364,1715155726480,-1586.9180246,0.000116,2]
[326621365,1715155726501,-3069.73803067,0.00011657,2]
[326621366,1715155726530,-800.0,0.00011922,2]
[326621367,1715155726553,-250.0,0.00011926,2]
[326621368,1715155726576,-150.0,0.00011946,2]
[326621369,1715155726604,-924.15,0.00012,2]
[326621370,1715155726627,-1052.55,0.00012059,2]
[326621371,1715155726652,-175.14,0.00012064,2]
[326621372,1715155726676,-200.0,0.0001212,2]
[326621373,1715155726700,-150.0,0.00012692,2]
[326621374,1715155726723,-1331.50394473,0.00012759,2]
[326621377,1715155731481,-2169.43739149,0.00012759,2]
[326621378,1715155732086,-1534.61097042,0.00012766,2]
[326621379,1715155733917,-1561.86172371,0.00012816,2]
[326621380,1715155735275,-252.85452482,0.00012866,2]
[326621381,1715155737190,-499.99,0.00012866,2]
[326621382,1715155737885,-159.54649592,0.00012869,2]
[326621383,1715155737915,-476.19200871,0.00012889,2]
[326621384,1715155737939,-192.33507616,0.00012897,2]
[326621385,1715155737961,-3153.17180877,0.00012897,2]
[326621386,1715155739210,-6662.92456809,0.00012897,2]
[326621387,1715155739232,-1000.0,0.00012898,2]
[326621388,1715155739256,-2337.07543191,0.00012899,2]
[326621389,1715155744612,-159.54649592,0.00012869,2]
[326621390,1715155745068,-162.91341793,0.00012896,2]
[326621391,1715155745113,-155.0,0.00012897,2]
[326621392,1715155745139,-9522.54008615,0.00012899,2]
[326621393,1715155747961,-10000.0,0.00012899,2]
[326621394,1715155755169,-6911.88598194,0.00012899,2]
[326621395,1715155755835,-3088.11401806,0.000129,2]
[326621396,1715155766590,-159.54649592,0.00012869,2]
[326621397,1715155766626,-3818.60858194,0.000129,2]
[326621398,1715155766651,-1572.08914685,0.00012985,2]
[326621399,1715155766674,-155.24423508,0.00012996,2]
[326621400,1715155766695,-217.7142684,0.00012996,2]
[326621401,1715155766718,-236.91014152,0.00012996,2]
[326621402,1715155766739,-155.19125816,0.00012996,2]
[326621403,1715155766760,-195.24381204,0.00012996,2]
[326621404,1715155766785,-276.75517959,0.00012996,2]
[326621405,1715155766806,-1187.25025607,0.00012997,2]
[326621406,1715155766842,-521.8596669,0.00012997,2]
[326621407,1715155766866,-155.61460785,0.00012997,2]
[326621408,1715155766890,-781.81785418,0.00012998,2]
[326621409,1715155766912,-566.1544955,0.00012998,2]
[326621410,1715155781122,-159.54649592,0.00012869,2]
[326621411,1715155781147,-1879.09338409,0.00012998,2]
[326621412,1715155781170,-155.0,0.00012998,2]
[326621413,1715155781193,-1061.81175695,0.00012998,2]
[326621414,1715155781216,-707.48452441,0.00012998,2]
[326621415,1715155781239,-2292.59367909,0.00012998,2]
[326621416,1715155781262,-217.34716856,0.00012999,2]
[326621417,1715155781284,-666.66111797,0.00012999,2]
[326621418,1715155781306,-155.51234367,0.00012999,2]
[326621419,1715155781329,-1000.0,0.00012999,2]
[326621420,1715155781351,-832.70105945,0.00012999,2]
[326621421,1715155781374,-872.24846989,0.00013,2]
[326621422,1715155791685,-5015.4383,0.00011826,2]
[326621423,1715155791711,-159.54649592,0.00012869,2]
[326621424,1715155791739,-4825.01520408,0.00013,2]
[326621425,1715155838488,-159.54649592,0.00012869,2]
[326621431,1715155838498,-1000.0,0.00012935,2]
[326621436,1715155838507,-1057.1087,0.00012935,2]
[326621439,1715155838517,-7500.0,0.00012985,2]
[326621444,1715155838526,-1667.25551055,0.00013,2]
[326621449,1715155838537,-299.66504719,0.00013,2]
[326621453,1715155838551,-833.79793316,0.00013,2]
[326621456,1715155838563,-318.86689986,0.00013,2]
[326621460,1715155838574,-659.47,0.00013,2]
[326621465,1715155838585,-341.48088377,0.00013,2]
[326621470,1715155838608,-643.59914021,0.00013,2]
[326621473,1715155838619,-1015.83173565,0.00013,2]
[326621476,1715155838631,-9858.62962008,0.00013,2]
[326621478,1715155838643,-11653.0382456,0.00013,2]
[326621480,1715155838654,-505.38615579,0.00013,2]
[326621482,1715155838666,-308.807424,0.00013,2]
[326621483,1715155838677,-1800.0,0.00013,2]
[326621484,1715155838689,-1080.00745947,0.00013,2]
[326621485,1715155838701,-469.63521555,0.00013,2]
[326621486,1715155838712,-1290.90309334,0.00013,2]
[326621487,1715155838724,-253.92241788,0.00013,2]
[326621488,1715155839645,-7076.96488765,0.00013,2]
[326621489,1715155839657,-3646.45277639,0.00013,2]
[326621490,1715155839669,-34018.31412399,0.00013,2]
[326621491,1715155839680,-20815.9729585,0.00013,2]
[326621497,1715155841252,-626.08831962,0.00013,2]
[326621501,1715155841263,-315.6,0.00013,2]
[326621509,1715155841308,-17621.52647091,0.00013,2]
[326621523,1715155842954,-1930.42788402,0.00013,2]
[326621524,1715155842968,-18704.4,0.00013,2]
[326621525,1715155842981,-668.87821,0.00013,2]
[326621579,1715155847601,-159.54649592,0.00012869,2]
[326621581,1715155847611,-330.98570996,0.00013,2]
[326621584,1715155847623,-303.50563027,0.00013,2]
[326621587,1715155847635,-5164.64713317,0.00013,2]
[326621591,1715155847647,-769.61865015,0.00013,2]
[326621596,1715155847658,-1381.05676272,0.00013,2]
[326621601,1715155847668,-2983.2103724,0.00013,2]
[326621604,1715155847680,-32237.78551188,0.00013,2]
[326621607,1715155847689,-200.0,0.00013,2]
[326621609,1715155847699,-20942.49115272,0.00013,2]
[326621611,1715155847709,-2000.0,0.00013,2]
[326621613,1715155847718,-1403.21834,0.00013,2]
[326621614,1715155847728,-1979.426145,0.0001304,2]
[326621615,1715155847737,-9096.4699813,0.00013049,2]
[326621616,1715155847746,-46063.1614075,0.00013058,2]
[326621617,1715155847756,-3826.649078,0.00013067,2]
[326621618,1715155847764,-200.0,0.0001313,2]
[326621619,1715155847774,-166.56,0.00013219,2]
[326621620,1715155847783,-200.0,0.00013261,2]
[326621621,1715155847792,-860.86002307,0.0001335,2]
[326621622,1715155847806,-1552.11091337,0.00013362,2]
[326621623,1715155847815,-200.0,0.00013394,2]
[326621624,1715155847825,-800.0,0.00013413,2]
[326621625,1715155847834,-362.25,0.00013425,2]
[326621626,1715155847845,-377.98,0.00013425,2]
[326621627,1715155847854,-200.0,0.00013528,2]
[326621628,1715155847863,-200.0,0.00013635,2]
[326621629,1715155847873,-200.0,0.00013699,2]
[326621630,1715155847884,-282.1344729,0.00014,2]
[326621631,1715155847894,-4000.0,0.00014,2]
[326621632,1715155847904,-800.0,0.00014903,2]
[326621633,1715155847913,-2965.0,0.00015,2]
[326621634,1715155847922,-717.0,0.00015,2]
[326621635,1715155847937,-200.0,0.0001515,2]
[326621636,1715155847949,-192.15,0.00015345,2]
[326621637,1715155847958,-529.0,0.000155,2]
[326621638,1715155847968,-500.0,0.00015858,2]
[326621639,1715155847977,-153.83058851,0.00016148,2]
[326621640,1715155847987,-2295.0,0.00016362,2]
[326621641,1715155847996,-5907.0,0.00016362,2]
[326621642,1715155848006,-5745.0,0.00016362,2]
[326621643,1715155848015,-288.0,0.00016362,2]
[326621645,1715155848024,-37800.0,0.00016362,2]
[326621647,1715155848033,-1062.756,0.00016362,2]
[326621649,1715155848043,-800.0,0.00016393,2]
[326621651,1715155848052,-1400.56,0.00016438,2]
[326621653,1715155848062,-200.0,0.00016665,2]
[326621655,1715155848071,-1000.0,0.000168,2]
[326621657,1715155848081,-159.58314489,0.00017088,2]
[326621659,1715155848090,-158.3299398,0.00017393,2]
[326621661,1715155848099,-155.94755229,0.00017501,2]
[326621663,1715155848108,-2771.19491311,0.00017621,2]
[326621665,1715155848118,-936.88766067,0.00017621,2]
[326621667,1715155848127,-2185.35948525,0.00017622,2]
[326621670,1715155848139,-715.90004619,0.00017622,2]
[326621672,1715155848151,-566.79831162,0.00017622,2]
[326621674,1715155848160,-1103.67569653,0.0001788,2]
[326621676,1715155848171,-1136.85044916,0.0001788,2]
[326621678,1715155848181,-2240.5261456,0.0001788,2]
[326621680,1715155848190,-800.0,0.00017884,2]
[326621682,1715155848201,-206.43,0.00017897,2]
[326621684,1715155848211,-158.72050772,0.00017923,2]
[326621686,1715155848220,-800.0,0.00017945,2]
[326621688,1715155848229,-800.0,0.00017945,2]
[326621690,1715155848238,-59.87289752,0.00017962,2]
[326621692,1715155848250,-90.12710248,0.00017962,2]
[326621694,1715155848259,-150.0,0.00017962,2]
[326621696,1715155848269,-1397.0,0.00017962,2]
[326621698,1715155848278,-972.0,0.00017962,2]
[326621700,1715155848287,-2301.0,0.00017962,2]
[326621702,1715155848296,-1260.0,0.00017962,2]
[326621704,1715155848306,-1788.0,0.00017962,2]
[326621706,1715155848315,-543.0,0.00017962,2]
[326621708,1715155848324,-1226.0,0.00017962,2]
[326621710,1715155848333,-809.0,0.00017962,2]
[326621712,1715155848343,-284.39971035,0.00017962,2]
[326621716,1715155848356,-326.60028965,0.00017962,2]
[326621718,1715155848365,-421.0,0.00017962,2]
[326621720,1715155848375,-438.0,0.00017962,2]
[326621722,1715155848384,-2431.0,0.00017962,2]
[326621724,1715155848393,-1478.0,0.00017962,2]
[326621726,1715155848403,-444.0,0.00017962,2]
[326621728,1715155848412,-920.57289034,0.00017962,2]
[326621730,1715155848423,-663.799999,0.00017962,2]
[326621732,1715155848434,-60.62711066,0.00017962,2]
[326621734,1715155848445,-1139.0,0.00017962,2]
[326621736,1715155848454,-215.0,0.00017962,2]
[326621738,1715155848462,-507.25646935,0.00017962,2]
[326621740,1715155848474,-2646.74353065,0.00017962,2]
[326621742,1715155848483,-150.0,0.0001799,2]
[326621744,1715155848493,-750.0,0.00018,3]
[326621746,1715155848508,-1403.21835,0.00018,2]
[326621748,1715155848519,-523.13,0.00018,2]
[326621750,1715155848528,-523.13,0.00018,2]
[326621752,1715155848538,-522.89,0.00018,2]
[326621754,1715155848547,-153.83058851,0.00018169,2]
[326621756,1715155848556,-200.0,0.0001818,2]
[326621758,1715155848566,-500.0,0.00018377,2]
[326621760,1715155848575,-500.0,0.00018377,2]
[326621762,1715155848584,-500.0,0.00018377,2]
[326621764,1715155848594,-500.0,0.00018377,2]
[326621766,1715155848604,-500.0,0.00018377,2]
[326621768,1715155848613,-500.0,0.00018377,2]
[326621770,1715155848622,-500.0,0.00018377,2]
[326621772,1715155848631,-500.0,0.00018377,2]
[326621774,1715155848641,-500.0,0.00018377,2]
[326621776,1715155848650,-227.12409414,0.00018377,2]
[326621778,1715155848661,-272.87590586,0.00018377,2]
[326621780,1715155848670,-249.52154287,0.00018377,2]
[326621782,1715155848681,-250.47845713,0.00018377,2]
[326621783,1715155848691,-500.0,0.00018377,2]
[326621785,1715155848700,-249.52154287,0.00018377,2]
[326621787,1715155848712,-250.47845713,0.00018377,2]
[326621789,1715155848721,-500.0,0.00018377,2]
[326621791,1715155848730,-500.0,0.00018377,2]
[326621793,1715155848739,-500.0,0.00018377,2]
[326621795,1715155848748,-500.0,0.00018377,2]
[326621797,1715155848757,-500.0,0.00018377,2]
[326621799,1715155848766,-386.51512181,0.00018377,2]
[326621801,1715155848777,-113.48487819,0.00018377,2]
[326621803,1715155848787,-339.1403103,0.00018377,2]
[326621805,1715155848801,-160.8596897,0.00018377,2]
[326621807,1715155848810,-500.0,0.00018377,2]
[326621809,1715155848819,-500.0,0.00018377,2]
[326621811,1715155848829,-500.0,0.00018377,2]
[326621812,1715155848839,-500.0,0.00018377,2]
[326621814,1715155848849,-500.0,0.00018377,2]
[326621816,1715155848859,-500.0,0.00018377,2]
[326621818,1715155848868,-500.0,0.00018377,2]
[326621820,1715155848878,-500.0,0.00018377,2]
[326621822,1715155848887,-500.0,0.00018377,2]
[326621824,1715155848897,-500.0,0.00018377,2]
[326621826,1715155848906,-500.0,0.00018377,2]
[326621828,1715155848915,-500.0,0.00018377,2]
[326621830,1715155848924,-500.0,0.00018377,2]
[326621832,1715155848934,-500.0,0.00018377,2]
[326621834,1715155848943,-500.0,0.00018377,2]
[326621835,1715155848953,-500.0,0.00018377,2]
[326621836,1715155848962,-500.0,0.00018377,2]
[326621837,1715155848972,-500.0,0.00018377,2]
[326621838,1715155848981,-500.0,0.00018377,2]
[326621839,1715155848990,-500.0,0.00018377,2]
[326621840,1715155848999,-500.0,0.00018377,2]
[326621841,1715155849009,-500.0,0.00018377,2]
[326621842,1715155849018,-500.0,0.00018377,2]
[326621843,1715155849027,-500.0,0.00018377,2]
[326621844,1715155849036,-153.83058851,0.00018396,2]
[326621845,1715155849045,-192.15,0.00018414,2]
[326621846,1715155849054,-2240.5261456,0.00018456,2]
[326621847,1715155849063,-324.55,0.00018822,2]
[326621848,1715155849073,-5000.0,0.00019,2]
[326621849,1715155849082,-16253.66907916,0.00019,5]
[326621850,1715155849130,-7140.24267717,0.00019,5]
[326621851,1715155849140,-155.0,0.00019,2]
[326621852,1715155849150,-159.58314489,0.00019133,2]
[326621853,1715155849161,-421.35330677,0.00019176,2]
[326621854,1715155849171,-411.45452887,0.00019176,2]
[326621855,1715155849180,-458.28,0.00019178,2]
[326621856,1715155849190,-156.35,0.00019178,2]
[326621857,1715155849203,-154.67,0.00019178,2]
[326621858,1715155849213,-198.57,0.00019178,2]
[326621859,1715155849222,-1939.16115508,0.00019362,2]
[326621860,1715155849234,-3967.83884492,0.00019362,2]
[326621861,1715155849243,-3124.855,0.00019362,2]
[326621862,1715155849253,-288.0,0.00019362,2]
[326621863,1715155849262,-6605.55129554,0.00019362,2]
[326621884,1715156720937,7452.84418532,0.00025,120]
[326621905,1715157023970,-522.0096725,0.00011697,2]
[326621906,1715157023994,-1000.0,0.00011698,2]
[326621907,1715157024020,-215.25609145,0.000117,2]
[326621908,1715157024043,-6712.18532289,0.00012,2]
[326621910,1715157038250,-231.43940181,0.00014899,2]
[326621911,1715157038261,-187.42470435,0.000149,2]
[326621912,1715157038272,-150.0,0.00016095,2]
[326621913,1715157038282,-2027.21638039,0.00016096,2]
[326621915,1715157038296,-7947.35241952,0.00016096,2]
[326621916,1715157038307,-91.26199065,0.00016097,2]
[326621917,1715157038320,-9159.8605666,0.00016097,2]
[326621918,1715157038332,-12085.03048219,0.00016097,2]
[326621919,1715157038342,-1076.1097,0.00016162,2]
[326621920,1715157038353,-1674.7609,0.00016162,2]
[326621921,1715157038363,-2384.08,0.00016162,2]
[326621922,1715157038373,-385.374,0.0001626,2]
[326621923,1715157038383,-1262.53141957,0.0001626,2]
[326621924,1715157038393,-787.96593841,0.0001626,2]
[326621925,1715157038402,-707.59365996,0.0001626,2]
[326621926,1715157038418,-2467.3681467,0.0001626,2]
[326621927,1715157038427,-641.710378,0.0001626,2]
[326621928,1715157038443,-299.99,0.0001626,4]
[326621929,1715157038457,-126945.0991,0.00016262,2]
[326621930,1715157038467,-212.4563,0.00016262,2]
[326621931,1715157038477,-1000.0,0.00016415,2]
[326621932,1715157038488,-250.0,0.00016551,2]
[326621933,1715157038498,-1788.0,0.00016998,2]
[326621934,1715157038508,-1260.0,0.00016998,2]
[326621935,1715157038518,-1226.0,0.00016998,2]
[326621936,1715157038528,-543.0,0.00016998,2]
[326621937,1715157038538,-589.338,0.00016998,2]
[326621938,1715157038548,-611.0,0.00016998,2]
[326621939,1715157038558,-421.0,0.00016998,2]
[326621940,1715157038568,-434.417,0.00016998,2]
[326621941,1715157038578,-1451.183,0.00016998,2]
[326621942,1715157038588,-2431.0,0.00016998,2]
[326621943,1715157038598,-1645.0,0.00016998,2]
[326621944,1715157038608,-1139.0,0.00016998,2]
[326621945,1715157038618,-444.0,0.00016998,2]
[326621946,1715157038628,-215.0,0.00016998,2]
[326621947,1715157038637,-3154.0,0.00016998,2]
[326621948,1715157038647,-37800.0,0.00016998,2]
[326621949,1715157038661,-5907.0,0.00016998,2]
[326621950,1715157038671,-288.0,0.00016998,2]
[326621951,1715157038681,-314.98,0.0001713,2]
[326621952,1715157038691,-440.58,0.0001713,2]
[326621953,1715157038701,-499.99,0.00017151,2]
[326621954,1715157038711,-1000.0,0.000172,2]
[326621955,1715157038721,-166.62605942,0.0001741,2]
[326621956,1715157038730,-156.66768544,0.00017424,2]
[326621957,1715157038740,-285.42538484,0.00017424,2]
[326621958,1715157038750,-153.83058852,0.00017454,2]
[326621959,1715157038759,-1500.0,0.00017645,2]
[326621960,1715157038769,-301.87,0.00017795,2]
[326621961,1715157038779,-15992.5523827,0.0001788,2]
[326621962,1715157038789,-1568.36830192,0.0001788,2]
[326621963,1715157038799,-750.0,0.00018,3]
[326621964,1715157038808,-1500.0,0.00018047,2]
[326621965,1715157038818,-1500.0,0.00018097,2]
[326621966,1715157038827,-1932.08666471,0.0001839,2]
[326621967,1715157038837,-340.51184011,0.0001839,2]
[326621968,1715157038847,-160.15365232,0.0001839,2]
[326621969,1715157038856,-200.02710478,0.0001839,2]
[326621970,1715157038865,-155.00000001,0.0001839,2]
[326621971,1715157038875,-197.02222246,0.0001839,2]
[326621972,1715157038884,-237.02687238,0.0001839,2]
[326621973,1715157038894,-228.64758728,0.0001839,2]
[326621974,1715157038903,-529.63476381,0.0001839,2]
[326621975,1715157038914,-159.00595016,0.0001839,2]
[326621976,1715157038924,-597.2279121,0.00018391,2]
[326621977,1715157038933,-8038.61441017,0.00018392,7]
[326621978,1715157038943,-1000.0,0.00018467,2]
[326621979,1715157038953,-15992.55238262,0.00018577,2]
[326621980,1715157038962,-1568.36830192,0.00018577,2]
[326621981,1715157038972,-300.84,0.00018808,2]
[326621982,1715157038981,-1500.0,0.00018964,2]
[326621983,1715157038991,-1561.86172371,0.00018983,2]
[326621984,1715157039000,-3642.09630289,0.00019,5]
[326621985,1715157039010,-5000.0,0.00019,2]
[326621986,1715157039020,-190.46950754,0.00019,2]
[326621987,1715157039030,-3219.717519,0.00019017,2]
[326621988,1715157039041,-435.36,0.00019178,2]
[326621989,1715157039052,-156.35,0.00019178,2]
[326621990,1715157039063,-7500.0,0.00019259,2]
[326621991,1715157039074,-1500.0,0.00019308,2]
[326621992,1715157039085,-166.62605942,0.00019346,2]
[326621993,1715157039095,-457.2203263,0.00019359,2]
[326621994,1715157039105,-155.13373743,0.0001936,2]
[326621995,1715157039115,-783.02262754,0.0001936,2]
[326621996,1715157039126,-192.29421113,0.0001936,2]
[326621997,1715157039136,-267.48303809,0.0001936,2]
[326621998,1715157039146,-155.0,0.0001936,2]
[326621999,1715157039159,-405.21355048,0.0001936,2]
[326622000,1715157039170,-220.0701607,0.0001936,2]
[326622001,1715157039378,-196.13561442,0.0001936,2]
[326622002,1715157039388,-155.0,0.0001936,2]
[326622003,1715157039397,-216.68450531,0.0001936,2]
[326622004,1715157039409,-156.0857039,0.0001936,2]
[326622005,1715157039418,-350.96210179,0.0001936,2]
[326622006,1715157039428,-270.87788749,0.0001936,2]
[326622007,1715157039438,-370.4478157,0.0001936,2]
[326622008,1715157039448,-216.99723947,0.00019361,2]
[326622009,1715157039457,-251.79891757,0.00019361,2]
[326622010,1715157039467,-155.0,0.00019361,2]
[326622011,1715157039476,-544.70898314,0.00019361,2]
[326622012,1715157039485,-200.0,0.00019362,2]
[326622013,1715157039495,-1000.0,0.00019362,2]
[326622014,1715157039504,-1000.0,0.00019362,2]
[326622015,1715157039514,-1000.0,0.00019362,2]
[326622016,1715157039523,-1000.0,0.00019362,2]
[326622017,1715157039532,-1000.0,0.00019362,2]
[326622018,1715157039542,-1000.0,0.00019362,2]
[326622019,1715157039551,-1000.0,0.00019362,2]
[326622020,1715157039561,-1000.0,0.00019362,2]
[326622021,1715157039570,-1000.0,0.00019362,2]
[326622022,1715157039579,-1000.0,0.00019362,2]
[326622023,1715157039589,-1000.0,0.00019362,2]
[326622024,1715157039598,-1000.0,0.00019362,2]
[326622025,1715157039608,-1000.0,0.00019362,2]
[326622026,1715157039618,-1000.0,0.00019362,2]
[326622027,1715157039628,-1000.0,0.00019362,2]
[326622028,1715157039638,-1000.0,0.00019362,2]
[326622029,1715157039648,-1000.0,0.00019362,2]
[326622030,1715157039660,-1000.0,0.00019362,2]
[326622031,1715157039669,-1000.0,0.00019362,2]
[326622032,1715157039679,-1000.0,0.00019362,2]
[326622033,1715157039688,-1000.0,0.00019362,2]
[326622034,1715157039698,-1000.0,0.00019362,2]
[326622035,1715157039708,-1000.0,0.00019362,2]
[326622036,1715157039718,-1000.0,0.00019362,2]
[326622037,1715157039727,-1000.0,0.00019362,2]
[326622038,1715157039737,-651.44233669,0.00019362,2]
[326622039,1715157039747,-200.0,0.00019362,2]
[326622040,1715157039758,-19897.39538755,0.00019385,2]
[326622041,1715157039771,-4799.4,0.00019385,2]
[326622042,1715157039783,-3572.07846879,0.00019385,2]
[326622043,1715157039794,-6198.26527444,0.00019385,2]
[326622044,1715157039805,-20481.70283892,0.00019385,2]
[326622045,1715157039814,-4959.5443548,0.00019398,2]
[326622046,1715157039824,-502.190711,0.00019411,2]
[326622047,1715157039833,-11745.9796443,0.00019411,2]
[326622048,1715157039842,-2062.351155,0.00019411,2]
[326622049,1715157039852,-500.0,0.00019423,2]
[326622050,1715157039862,-4039.2452703,0.00019424,2]
[326622051,1715157039873,-3311.0796272,0.00019424,2]
[326622052,1715157039882,-8905.1232476,0.00019437,2]
[326622053,1715157039893,-1231.00014415,0.0001945,2]
[326622054,1715157039902,-1012.08807804,0.000195,2]
[326622055,1715157039913,-159.5831449,0.00019704,2]
[326622056,1715157039923,-1500.0,0.00019783,2]
[326622057,1715157039932,-1788.0,0.00019998,2]